[Event "Commonwealth Open 2019"]
[Site "Delhi"]
[Date "2019.06.30"]
[Round "1.28"]
[White "Wagh Suyog"]
[Black "Lim, Kian Hwa"]
[Result "0-1"]
[ECO "A04"]
[WhiteElo "2250"]
[BlackElo "1644"]
[Annotator "NA"]
[PlyCount "142"]
[EventDate "2019.06.30"]
[EventType "swiss"]
[EventCountry "IND"]
[SourceTitle "playchess.com"]
[Source "ChessBase"]
[SourceQuality "1"]
[TimeControl "5400+30"]

1. Nf3 {[%emt 0:05:15]} d6 {[%emt 0:00:00]} 2. d4 {[%emt 0:00:05]} Nd7 {[%emt 0:00:15]} 3. c4 {[%emt 0:00:35]} e5 {[%emt 0:00:52]} 4. Nc3 {[%emt 0:00:10]} Ngf6 {[%emt 0:02:41]} 5. g3 {[%emt 0:00:05]} c6 {[%emt 0:00:44]} 6. Bg2 {[%emt 0:00:05]} Be7 {[%emt 0:00:30]} 7. e4 {[%emt 0:00:16]} O-O {[%emt 0:00:37]} 8. O-O {[%emt 0:00:03]} h6 {[%emt 0:03:46]} 9. h3 {[%emt 0:04:24]} Nh7 {[%emt 0:01:51]} 10. Be3 {[%emt 0:01:06]} Ng5 {[%emt 0:01:16]} 11. Nd2 {[%emt 0:06:54]} exd4 {[%emt 0:08:39]} 12. Bxd4 {[%emt 0:00:04]} Ne5 {[%emt 0:11:54]} 13. Kh2 {[%emt 0:06:30]} Ne6 {[%emt 0:05:41]} 14. Be3 {[%emt 0:00:59]} Bf6 {[%emt 0:01:16]} 15. f4 {[%emt 0:00:59]} Nd3 {[%emt 0:00:25]} 16. Qc2 {[%emt 0:02:24]} Nec5 {[%emt 0:02:09]} 17. a3 {[%emt 0:03:38]} a5 {[%emt 0:02:15]} 18. Rab1 {[%emt 0:01:40]} a4 {[%emt 0:01:57]} 19. Rfd1 {[%emt 0:00:04]} Qa5 {[%emt 0:02:24]} 20. Na2 {[%emt 0:02:25]} Re8 {[%emt 0:03:44]} 21. Nf1 {[%emt 0:03:53]} Nxb2 {[%emt 0:10:05]} 22. Rd4 d5 23. Rxd5 {[%emt 0:04:43]} Be6 {[%emt 0:05:38]} 24. Rd6 {[%emt 0:13:29]} Rac8 25. Nd2 Rcd8 {[%emt 0:04:14]} 26. Rxd8 {[%emt 0:02:04]} Rxd8 {[%emt 0:00:12]} 27. e5 {[%emt 0:01:56]} Rd3 {[%emt 0:09:47]} 28. exf6 {[%emt 0:07:17]} Rxe3 {[%emt 0:01:16]} 29. Rxb2 {[%emt 0:02:21]} gxf6 {[%emt 0:05:17]} 30. Ne4 {[%emt 0:06:43]} Nxe4 {[%emt 0:02:17]} 31. Bxe4 {[%emt 0:00:05]} Qe1 {[%emt 0:00:36]} 32. Qg2 {[%emt 0:09:51]} Rxe4 {[%emt 0:00:41]} 33. c5 {[%emt 0:00:01]} Bd5 {[%emt 0:01:51]} 34. Rf2 {[%emt 0:01:31]} Re3 {[%emt 0:02:54]} 35. Qg1 {[%emt 0:00:22]} Qxg1+ {[%emt 0:00:27]} 36. Kxg1 {[%emt 0:00:04]} Rxg3+ {[%emt 0:00:22]} 37. Kh2 {[%emt 0:00:11]} Rxa3 {[%emt 0:01:17]} 38. Nb4 {[%emt 0:00:34]} Be4 {[%emt 0:01:27]} 39. Na2 {[%emt 0:01:35]} f5 {[%emt 0:00:40]} 40. Rd2 {[%emt 0:00:12]} Kg7 {[%emt 0:00:33]} 41. h4 {[%emt 0:00:06]} Rf3 {[%emt 0:00:54]} 42. Kg1 {[%emt 0:00:11]} Rxf4 {[%emt 0:00:32]} 43. Nc3 {[%emt 0:00:04]} a3 {[%emt 0:00:37]} 44. Ra2 Rxh4 {[%emt 0:01:18]} 45. Rxa3 {[%emt 0:00:04]} Rh3 {[%emt 0:00:37]} 46. Kf2 {[%emt 0:00:10]} h5 {[%emt 0:00:33]} 47. Nb1 {[%emt 0:00:52]} Rxa3 {[%emt 0:00:20]} 48. Nxa3 {[%emt 0:00:02]} Bd3 {[%emt 0:00:53]} 49. Ke3 {[%emt 0:00:00]} h4 {[%emt 0:01:50]} 50. Kxd3 {[%emt 0:01:44]} h3 {[%emt 0:00:08]} 51. Nc4 {[%emt 0:00:05]} h2 {[%emt 0:00:57]} 52. Nd6 {[%emt 0:00:10]} h1=Q {[%emt 0:00:51]} 53. Nxf5+ {[%emt 0:00:02]} Kf6 {[%emt 0:00:33]} 54. Ne3 {[%emt 0:00:02]} Ke5 {[%emt 0:00:59]} 55. Nc2 {[%emt 0:00:07]} Qd5+ {[%emt 0:00:28]} 56. Ke2 {[%emt 0:00:08]} Qxc5 {[%emt 0:00:19]} 57. Ne1 {[%emt 0:00:01]} Ke4 {[%emt 0:00:39]} 58. Kd2 {[%emt 0:00:06]} Qe3+ {[%emt 0:00:38]} 59. Kd1 {[%emt 0:00:01]} Qxe1+ {[%emt 0:00:16]} 60. Kxe1 {[%emt 0:00:07]} Ke3 {[%emt 0:00:17]} 61. Kd1 f5 62. Ke1 f4 63. Kf1 f3 64. Ke1 b5 65. Kf1 b4 66. Kg1 {[%emt 0:04:07]} Ke2 {[%emt 0:03:00]} 67. Kh2 {[%emt 0:00:01]} f2 {[%emt 0:00:13]} 68. Kg3 f1=Q 69. Kh2 Qf8 70. Kg3 {[%emt 0:02:14]} Qf5 {[%emt 0:01:22]} 71. Kh4 {[%emt 0:00:02]} Qg6 {[%emt 0:00:14]} 0-1

[Event "Commonwealth Open 2019"]
[Site "Delhi"]
[Date "2019.06.30"]
[Round "1.29"]
[White "du Plessis, Jan"]
[Black "Bhambure, Shantanu"]
[Result "1-0"]
[ECO "B22"]
[WhiteElo "1631"]
[BlackElo "2248"]
[Annotator "NA"]
[PlyCount "67"]
[EventDate "2019.06.30"]
[EventType "swiss"]
[EventCountry "IND"]
[SourceTitle "playchess.com"]
[Source "ChessBase"]
[SourceQuality "1"]
[TimeControl "5400+30"]

1. e4 c5 2. c3 d5 3. exd5 Qxd5 4. d4 Nc6 5. Nf3 {[%emt 0:01:47]} Bf5 {[%emt 0:00:00]} 6. Na3 {[%emt 0:00:17]} cxd4 {[%emt 0:01:39]} 7. cxd4 {[%emt 0:01:32]} e6 {[%emt 0:11:08]} 8. Nb5 {[%emt 0:01:49]} O-O-O {[%emt 0:02:42]} 9. a3 {[%emt 0:04:36]} Nf6 {[%emt 0:06:00]} 10. Be3 {[%emt 0:03:58]} Ng4 {[%emt 0:15:30]} 11. Rc1 {[%emt 0:03:57]} Nxe3 {[%emt 0:06:07]} 12. fxe3 {[%emt 0:00:58]} Kb8 {[%emt 0:01:41]} 13. Qa4 {[%emt 0:05:25]} a6 {[%emt 0:02:50]} 14. Nc3 {[%emt 0:02:04]} Qd7 {[%emt 0:03:46]} 15. b4 {[%emt 0:06:56]} Bd6 {[%emt 0:05:11]} 16. b5 {[%emt 0:02:44]} Na7 {[%emt 0:02:49]} 17. e4 {[%emt 0:05:44]} Bg6 {[%emt 0:03:33]} 18. Bd3 {[%emt 0:04:03]} Bf4 {[%emt 0:03:56]} 19. Rc2 {[%emt 0:01:54]} Be3 {[%emt 0:05:56]} 20. bxa6 {[%emt 0:05:23]} Qxa4 {[%emt 0:00:41]} 21. Nxa4 {[%emt 0:00:22]} Bxd4 {[%emt 0:01:02]} 22. axb7 {[%emt 0:01:13]} f5 {[%emt 0:08:13]} 23. exf5 {[%emt 0:02:17]} exf5 {[%emt 0:00:23]} 24. Nxd4 {[%emt 0:01:31]} Rhe8+ {[%emt 0:05:32]} 25. Kf2 {[%emt 0:02:26]} Rxd4 {[%emt 0:00:11]} 26. Nc5 {[%emt 0:00:18]} Nc6 {[%emt 0:09:57]} 27. Na6+ {[%emt 0:05:32]} Kxb7 {[%emt 0:00:29]} 28. Rb1+ {[%emt 0:00:12]} Ka7 {[%emt 0:00:23]} 29. Nc7 {[%emt 0:01:45]} Rxd3 {[%emt 0:02:01]} 30. Rxc6 {[%emt 0:01:12]} Rxa3 {[%emt 0:00:57]} 31. Nxe8 {[%emt 0:00:39]} Bxe8 {[%emt 0:00:18]} 32. Rc7+ {[%emt 0:00:05]} Ka6 {[%emt 0:00:05]} 33. Rc8 {[%emt 0:00:17]} Ra2+ {[%emt 0:00:47]} 34. Kg1 {[%emt 0:00:19]} 1-0

[Event "Commonwealth Open 2019"]
[Site "Delhi"]
[Date "2019.06.30"]
[Round "1.30"]
[White "Mahalakshmi, M."]
[Black "Suthar Pradip"]
[Result "1-0"]
[ECO "A78"]
[WhiteElo "2245"]
[BlackElo "1631"]
[Annotator "NA"]
[PlyCount "86"]
[EventDate "2019.06.30"]
[EventType "swiss"]
[EventCountry "IND"]
[SourceTitle "playchess.com"]
[Source "ChessBase"]
[SourceQuality "1"]
[TimeControl "5400+30"]

1. d4 Nf6 2. c4 c5 3. d5 e6 4. Nc3 exd5 5. cxd5 {[%emt 0:01:31]} d6 {[%emt 0:00:05]} 6. Nf3 {[%emt 0:00:05]} g6 {[%emt 0:00:19]} 7. Nd2 {[%emt 0:01:23]} Bg7 {[%emt 0:01:27]} 8. e4 {[%emt 0:00:40]} O-O {[%emt 0:00:33]} 9. Be2 {[%emt 0:00:29]} Re8 {[%emt 0:01:34]} 10. O-O {[%emt 0:00:51]} Na6 {[%emt 0:00:47]} 11. h3 {[%emt 0:03:56]} Nc7 {[%emt 0:00:55]} 12. Re1 {[%emt 0:02:21]} Rb8 {[%emt 0:04:29]} 13. a4 {[%emt 0:01:22]} b6 {[%emt 0:00:31]} 14. Qc2 {[%emt 0:02:12]} Nd7 {[%emt 0:24:07]} 15. Nb5 {[%emt 0:09:29]} Nxb5 {[%emt 0:13:17]} 16. axb5 {[%emt 0:00:34]} Ra8 {[%emt 0:00:11]} 17. Ra3 {[%emt 0:03:18]} Bb7 {[%emt 0:04:18]} 18. Nc4 {[%emt 0:02:17]} Ne5 {[%emt 0:00:44]} 19. Bd2 {[%emt 0:00:59]} f5 {[%emt 0:18:31]} 20. exf5 {[%emt 0:11:24]} Bxd5 {[%emt 0:02:19]} 21. Nxe5 {[%emt 0:03:56]} Rxe5 {[%emt 0:03:53]} 22. fxg6 {[%emt 0:01:05]} hxg6 {[%emt 0:02:44]} 23. Qxg6 {[%emt 0:02:24]} Qe8 {[%emt 0:05:45]} 24. Rg3 {[%emt 0:04:53]} Qxg6 {[%emt 0:05:38]} 25. Rxg6 {[%emt 0:00:02]} Rae8 {[%emt 0:01:06]} 26. Bc3 {[%emt 0:01:49]} Rxe2 {[%emt 0:02:04]} 27. Rxg7+ {[%emt 0:00:50]} Kf8 {[%emt 0:00:02]} 28. Rd1 {[%emt 0:00:44]} Bf7 {[%emt 0:06:28]} 29. Rxd6 {[%emt 0:00:44]} Re1+ {[%emt 0:01:16]} 30. Kh2 {[%emt 0:00:07]} R1e6 {[%emt 0:00:36]} 31. Rd3 {[%emt 0:01:42]} Rg6 {[%emt 0:00:21]} 32. Rh7 {[%emt 0:00:56]} Re2 {[%emt 0:00:48]} 33. Rf3 {[%emt 0:02:16]} Re7 {[%emt 0:00:06]} 34. Rh8+ {[%emt 0:01:08]} Rg8 {[%emt 0:00:06]} 35. Rh6 {[%emt 0:00:22]} Ke8 {[%emt 0:00:28]} 36. Bf6 {[%emt 0:04:28]} Rd7 {[%emt 0:01:56]} 37. Bh4 {[%emt 0:01:25]} Bg6 {[%emt 0:00:12]} 38. Bg3 {[%emt 0:02:06]} Ke7 {[%emt 0:00:42]} 39. Re3+ {[%emt 0:03:27]} Kf7 {[%emt 0:00:04]} 40. Rh4 {[%emt 0:00:31]} Re8 {[%emt 0:00:37]} 41. Be5 {[%emt 0:01:56]} Rg8 {[%emt 0:00:48]} 42. Rf4+ {[%emt 0:01:09]} Ke6 {[%emt 0:00:38]} 43. Bc7+ {[%emt 0:00:22]} Kd5 1-0

[Event "Commonwealth Open 2019"]
[Site "Delhi"]
[Date "2019.06.30"]
[Round "2.3"]
[White "Aravindh, Chithambaram VR."]
[Black "Mohota, Nisha"]
[Result "1-0"]
[ECO "A06"]
[WhiteElo "2598"]
[BlackElo "2236"]
[Annotator "ChessBase"]
[PlyCount "89"]
[EventDate "2019.06.30"]
[EventType "swiss"]
[EventCountry "IND"]
[SourceTitle "playchess.com"]
[Source "ChessBase"]
[SourceQuality "1"]
[TimeControl "5400+30"]

1. Nf3 {[%emt 0:00:00]} d5 {[%emt 0:00:00]} 2. e3 {[%emt 0:00:00]} Nf6 {[%emt 0:00:00]} 3. c4 {[%emt 0:00:00]} e6 {[%emt 0:00:00]} 4. Nc3 {[%emt 0:00:00]} Be7 {[%emt 0:00:09]} 5. b3 {[%emt 0:00:01]} c5 {[%emt 0:00:29]} 6. cxd5 {[%emt 0:00:21]} exd5 {[%emt 0:00:36]} 7. Bb2 {[%emt 0:00:40]} O-O {[%emt 0:03:20]} 8. d4 {[%emt 0:00:46]} cxd4 {[%emt 0:01:25]} 9. Nxd4 {[%emt 0:00:07]} Nc6 {[%emt 0:00:03]} 10. Be2 {[%emt 0:00:44]} Bc5 {[%emt 0:00:06]} 11. Nxc6 {[%emt 0:05:58]} bxc6 {[%emt 0:00:07]} 12. O-O {[%emt 0:00:06]} Bd6 {[%emt 0:11:50]} 13. Rc1 {[%emt 0:07:20]} Bf5 {[%emt 0:10:19]} 14. Na4 {[%emt 0:07:19]} Rc8 {[%emt 0:06:26]} 15. Qd4 {[%emt 0:00:56]} Re8 {[%emt 0:06:20]} 16. Nc5 {[%emt 0:02:21]} Be5 {[%emt 0:04:40]} 17. Qd2 {[%emt 0:00:34]} Ne4 {[%emt 0:02:56]} 18. Nxe4 {[%emt 0:05:09]} Bxe4 {[%emt 0:01:07]} 19. Bxe5 {[%emt 0:03:37]} Rxe5 {[%emt 0:00:09]} 20. Qd4 {[%emt 0:01:22]} Re7 {[%emt 0:07:33]} 21. Rc5 {[%emt 0:01:33]} Qd6 22. Rfc1 {[%emt 0:00:20]} Qg6 {[%emt 0:16:10]} 23. f3 {[%emt 0:00:42]} Bf5 {[%emt 0:00:27]} 24. Qxd5 {[%emt 0:03:59]} Bd7 {[%emt 0:13:45]} 25. Qd4 {[%emt 0:00:08]} Rce8 {[%emt 0:02:38]} 26. e4 {[%emt 0:02:14]} h5 {[%emt 0:00:58]} 27. h4 {[%emt 0:02:39]} f6 {[%emt 0:01:10]} 28. Rd1 {[%emt 0:04:07]} Kh8 {[%emt 0:02:53]} 29. Bf1 {[%emt 0:01:46]} Qf7 {[%emt 0:03:24]} 30. Bc4 {[%emt 0:03:40]} Qg6 {[%emt 0:00:15]} 31. Bf1 {[%emt 0:02:32]} Qf7 {[%emt 0:00:11]} 32. Qc3 {[%emt 0:01:00]} Rb8 {[%emt 0:01:19]} 33. Qa5 {[%emt 0:00:34]} Be8 {[%emt 0:00:10]} 34. Rd6 {[%emt 0:01:20]} g6 {[%emt 0:03:37]} 35. Bc4 {[%emt 0:01:49]} Qf8 {[%emt 0:00:16]} 36. Qd2 {[%emt 0:02:15]} Kg7 {[%emt 0:01:18]} 37. Qd4 {[%emt 0:00:13]} Rbb7 {[%emt 0:01:00]} 38. e5 {[%emt 0:01:15]} f5 {[%emt 0:00:51]} 39. Rf6 {[%emt 0:03:07]} Qh8 {[%emt 0:00:03]} 40. e6 {[%emt 0:00:41]} Kh7 {[%emt 0:00:14]} 41. Rcxf5 {[%emt 0:00:36]} gxf5 {[%emt 0:01:26]} 42. Rh6+ {[%emt 0:00:10]} Kxh6 {[%emt 0:00:06]} 43. Qxh8+ {[%emt 0:00:04]} Kg6 {[%emt 0:00:04]} 44. g4 {[%emt 0:00:25]} hxg4 {[%emt 0:01:17]} 45. fxg4 {[%emt 0:00:06]} 1-0

[Event "Commonwealth Open 2019"]
[Site "Delhi"]
[Date "2019.06.30"]
[Round "2.4"]
[White "Oatlhotse, Providence"]
[Black "Lalith Babu M R"]
[Result "1/2-1/2"]
[ECO "A13"]
[WhiteElo "2244"]
[BlackElo "2571"]
[Annotator "ChessBase"]
[PlyCount "144"]
[EventDate "2019.06.30"]
[EventType "swiss"]
[EventCountry "IND"]
[SourceTitle "playchess.com"]
[Source "ChessBase"]
[SourceQuality "1"]
[TimeControl "5400+30"]

1. Nf3 {[%emt 0:06:24]} Nf6 {[%emt 0:00:00]} 2. c4 {[%emt 0:00:33]} e6 {[%emt 0:00:22]} 3. g3 {[%emt 0:03:31]} d5 {[%emt 0:00:43]} 4. Bg2 {[%emt 0:00:12]} dxc4 {[%emt 0:00:23]} 5. O-O {[%emt 0:01:24]} Be7 {[%emt 0:01:34]} 6. Na3 {[%emt 0:01:10]} Bxa3 {[%emt 0:01:19]} 7. bxa3 {[%emt 0:00:06]} O-O {[%emt 0:00:23]} 8. Qc2 {[%emt 0:01:00]} c5 {[%emt 0:13:13]} 9. Bb2 {[%emt 0:01:35]} Nbd7 {[%emt 0:01:29]} 10. Qxc4 {[%emt 0:00:53]} Rb8 {[%emt 0:04:52]} 11. a4 {[%emt 0:10:16]} b6 {[%emt 0:06:03]} 12. Ne5 {[%emt 0:04:27]} Bb7 {[%emt 0:00:33]} 13. Nc6 {[%emt 0:00:46]} Bxc6 {[%emt 0:00:04]} 14. Bxc6 {[%emt 0:00:05]} Rc8 {[%emt 0:00:16]} 15. Bb7 {[%emt 0:02:06]} Rc7 {[%emt 0:02:30]} 16. Bg2 {[%emt 0:00:11]} Nb8 {[%emt 0:02:54]} 17. Be5 {[%emt 0:04:55]} Rd7 {[%emt 0:00:05]} 18. d3 {[%emt 0:01:16]} Nd5 {[%emt 0:00:04]} 19. Qb5 {[%emt 0:05:20]} Nc7 {[%emt 0:08:52]} 20. Qb2 {[%emt 0:00:39]} f6 {[%emt 0:00:07]} 21. Bf4 {[%emt 0:04:04]} Nd5 {[%emt 0:00:42]} 22. Bd2 {[%emt 0:00:47]} Nc6 {[%emt 0:00:05]} 23. Rfc1 {[%emt 0:02:23]} f5 {[%emt 0:01:28]} 24. a5 {[%emt 0:01:23]} Nd4 {[%emt 0:00:53]} 25. Be3 {[%emt 0:01:26]} e5 {[%emt 0:07:20]} 26. axb6 {[%emt 0:01:50]} axb6 {[%emt 0:00:54]} 27. Rab1 {[%emt 0:00:33]} f4 {[%emt 0:01:05]} 28. Bxd4 {[%emt 0:00:36]} exd4 {[%emt 0:00:23]} 29. Bxd5+ {[%emt 0:02:01]} Rxd5 {[%emt 0:00:03]} 30. Qxb6 {[%emt 0:00:12]} fxg3 {[%emt 0:00:22]} 31. hxg3 {[%emt 0:01:25]} Qg5 {[%emt 0:00:41]} 32. Qe6+ {[%emt 0:23:02]} Kh8 {[%emt 0:00:09]} 33. Rf1 {[%emt 0:02:13]} h5 {[%emt 0:04:19]} 34. Rb7 {[%emt 0:06:28]} Re5 {[%emt 0:02:01]} 35. Qd6 {[%emt 0:00:55]} Rfe8 {[%emt 0:09:57]} 36. Rb8 {[%emt 0:01:22]} Rxe2 {[%emt 0:00:37]} 37. Rxe8+ {[%emt 0:00:38]} Rxe8 {[%emt 0:00:04]} 38. Qc6 {[%emt 0:01:20]} Re2 {[%emt 0:00:30]} 39. a4 {[%emt 0:00:30]} Ra2 {[%emt 0:00:30]} 40. Qe6 {[%emt 0:00:30]} Rb2 {[%emt 0:06:28]} 41. Re1 {[%emt 0:07:18]} Kh7 {[%emt 0:05:56]} 42. Re5 {[%emt 0:00:44]} Rb1+ {[%emt 0:01:59]} 43. Kg2 {[%emt 0:00:05]} Qg6 {[%emt 0:00:19]} 44. Qxg6+ Kxg6 {[%emt 0:00:08]} 45. Kf3 {[%emt 0:03:07]} Ra1 {[%emt 0:01:06]} 46. Rxc5 {[%emt 0:00:29]} Rxa4 {[%emt 0:00:03]} 47. Ke4 {[%emt 0:00:10]} Ra2 {[%emt 0:02:14]} 48. f4 {[%emt 0:00:04]} Rg2 {[%emt 0:00:05]} 49. Rg5+ {[%emt 0:00:07]} Kf6 {[%emt 0:00:02]} 50. Rxh5 {[%emt 0:01:39]} Rxg3 {[%emt 0:00:18]} 51. Kxd4 {[%emt 0:00:09]} Rg1 {[%emt 0:00:14]} 52. Ke4 {[%emt 0:01:01]} Re1+ {[%emt 0:00:30]} 53. Kf3 {[%emt 0:00:11]} Rf1+ {[%emt 0:01:30]} 54. Ke3 {[%emt 0:00:03]} Re1+ {[%emt 0:00:14]} 55. Kf2 {[%emt 0:00:10]} Ra1 {[%emt 0:00:04]} 56. Re5 {[%emt 0:00:55]} Ra2+ {[%emt 0:00:34]} 57. Kf3 {[%emt 0:00:24]} Ra1 {[%emt 0:00:07]} 58. Ke2 {[%emt 0:00:20]} Ra2+ {[%emt 0:00:52]} 59. Ke3 {[%emt 0:00:02]} Ra1 {[%emt 0:00:04]} 60. d4 {[%emt 0:01:22]} Re1+ {[%emt 0:03:32]} 61. Kf3 {[%emt 0:01:00]} Ra1 {[%emt 0:00:34]} 62. Ke4 {[%emt 0:00:11]} Ra2 {[%emt 0:00:48]} 63. Kd5 {[%emt 0:00:29]} Ra5+ {[%emt 0:00:39]} 64. Kd6 {[%emt 0:00:37]} Ra4 {[%emt 0:01:27]} 65. Kc5 {[%emt 0:00:33]} g6 {[%emt 0:00:06]} 66. Kd5 {[%emt 0:00:46]} Ra5+ {[%emt 0:00:10]} 67. Ke4 {[%emt 0:00:10]} Ra1 {[%emt 0:00:28]} 68. d5 {[%emt 0:00:19]} Ra4+ {[%emt 0:00:40]} 69. Ke3 {[%emt 0:00:12]} Ra3+ {[%emt 0:00:06]} 70. Ke2 {[%emt 0:01:18]} Ra2+ {[%emt 0:00:37]} 71. Ke3 {[%emt 0:00:29]} Ra3+ {[%emt 0:00:05]} 72. Kd4 {[%emt 0:00:32]} Ra4+ {[%emt 0:00:04] Ke4 Kxe5+} 1/2-1/2

[Event "Commonwealth Open 2019"]
[Site "Delhi"]
[Date "2019.06.30"]
[Round "2.5"]
[White "Deepan Chakkravarthy J."]
[Black "Ajay Karthikeyan"]
[Result "0-1"]
[ECO "B23"]
[WhiteElo "2557"]
[BlackElo "2227"]
[Annotator "ChessBase"]
[PlyCount "164"]
[EventDate "2019.06.30"]
[EventType "swiss"]
[EventCountry "IND"]
[SourceTitle "playchess.com"]
[Source "ChessBase"]
[SourceQuality "1"]
[TimeControl "5400+30"]

1. e4 {[%emt 0:00:12]} c5 {[%emt 0:04:52]} 2. Nc3 {[%emt 0:00:32]} d6 {[%emt 0:00:47]} 3. Bc4 {[%emt 0:01:59]} e6 {[%emt 0:02:58]} 4. Nge2 {[%emt 0:01:28]} a6 {[%emt 0:00:07]} 5. a3 {[%emt 0:01:49]} Nf6 {[%emt 0:02:31]} 6. Ba2 {[%emt 0:00:08]} b5 {[%emt 0:00:30]} 7. d3 {[%emt 0:01:44]} Nc6 {[%emt 0:02:58]} 8. O-O {[%emt 0:00:10]} Be7 {[%emt 0:05:02]} 9. f4 {[%emt 0:05:07]} O-O {[%emt 0:00:41]} 10. Ng3 {[%emt 0:05:10]} d5 {[%emt 0:03:32]} 11. e5 {[%emt 0:14:36]} Ne8 {[%emt 0:02:44]} 12. Nce2 {[%emt 0:00:08]} g6 {[%emt 0:03:32]} 13. c3 {[%emt 0:02:55]} Ng7 {[%emt 0:07:36]} 14. d4 {[%emt 0:00:40]} c4 {[%emt 0:03:42]} 15. Bb1 {[%emt 0:00:32]} f5 {[%emt 0:02:28]} 16. exf6 {[%emt 0:00:55]} Bxf6 {[%emt 0:00:25]} 17. Nh1 {[%emt 0:00:12]} Nf5 {[%emt 0:08:17]} 18. Nf2 {[%emt 0:00:22]} Bg7 {[%emt 0:04:19]} 19. Kh1 {[%emt 0:03:35]} a5 {[%emt 0:00:50]} 20. Ng1 {[%emt 0:05:25]} Bd7 {[%emt 0:00:49]} 21. Bc2 {[%emt 0:00:08]} b4 {[%emt 0:00:44]} 22. Ba4 {[%emt 0:00:13]} bxc3 {[%emt 0:04:09]} 23. bxc3 {[%emt 0:00:05]} Rb8 {[%emt 0:03:43]} 24. Nf3 {[%emt 0:00:18]} Na7 {[%emt 0:07:05]} 25. Bc2 {[%emt 0:00:49]} Nb5 {[%emt 0:01:47]} 26. Bd2 {[%emt 0:01:47]} Nc7 {[%emt 0:04:00]} 27. a4 {[%emt 0:01:20]} Bc6 {[%emt 0:05:54]} 28. Ng4 {[%emt 0:03:26]} Ba8 29. Nge5 {[%emt 0:04:24]} Nd6 {[%emt 0:05:40]} 30. Ng5 {[%emt 0:03:10]} Bxe5 {[%emt 0:06:17]} 31. fxe5 {[%emt 0:00:57]} Ne4 {[%emt 0:00:12]} 32. Bxe4 {[%emt 0:04:29]} dxe4 {[%emt 0:00:13]} 33. Qg4 {[%emt 0:00:07]} e3 {[%emt 0:02:49]} 34. Bxe3 {[%emt 0:01:59]} Rb2 {[%emt 0:00:23]} 35. Ne4 {[%emt 0:06:45]} Rf5 {[%emt 0:01:58]} 36. Nf6+ {[%emt 0:13:19]} Kh8 {[%emt 0:00:49]} 37. Qh4 {[%emt 0:02:10]} Qe7 {[%emt 0:02:39]} 38. Rf2 {[%emt 0:00:12]} Rb3 {[%emt 0:01:25]} 39. Bg5 {[%emt 0:05:22]} Qf7 {[%emt 0:00:27]} 40. Kg1 {[%emt 0:00:31]} Nd5 {[%emt 0:00:18]} 41. Nxd5 {[%emt 0:08:44]} Bxd5 {[%emt 0:00:02]} 42. Bh6 {[%emt 0:00:30]} g5 {[%emt 0:00:30]} 43. Bxg5 {[%emt 0:00:30]} Qg6 {[%emt 0:00:30]} 44. Bf6+ {[%emt 0:00:30]} Kg8 {[%emt 0:00:30]} 45. Qg3 {[%emt 0:00:30]} Qxg3 {[%emt 0:00:30]} 46. hxg3 {[%emt 0:00:30]} h5 {[%emt 0:00:30]} 47. Rff1 {[%emt 0:00:30]} Rxf1+ {[%emt 0:00:30]} 48. Rxf1 {[%emt 0:00:30]} Rxc3 {[%emt 0:00:30]} 49. Rf2 {[%emt 0:00:30]} Rxg3 {[%emt 0:00:30]} 50. Bd8 {[%emt 0:00:30]} c3 {[%emt 0:00:30]} 51. Bxa5 {[%emt 0:01:23]} Be4 {[%emt 0:01:08]} 52. Kh2 {[%emt 0:01:08]} Re3 {[%emt 0:00:20]} 53. Bb4 {[%emt 0:01:03]} c2 {[%emt 0:00:18]} 54. Rf8+ {[%emt 0:00:03]} Kg7 {[%emt 0:00:05]} 55. Rc8 {[%emt 0:00:04]} Re2 {[%emt 0:01:18]} 56. a5 {[%emt 0:00:01]} Rxg2+ {[%emt 0:00:07]} 57. Kh3 {[%emt 0:00:01]} Rg1 {[%emt 0:00:14]} 58. Bd2 {[%emt 0:00:12]} Rd1 {[%emt 0:00:28]} 59. Bg5 {[%emt 0:02:29]} Rxd4 {[%emt 0:00:52]} 60. Bf6+ {[%emt 0:00:34]} Kg6 {[%emt 0:00:27]} 61. Kg3 {[%emt 0:00:12]} Kf5 {[%emt 0:00:30]} 62. Bg7 {[%emt 0:00:30]} Kg6 {[%emt 0:00:30]} 63. Bf8 {[%emt 0:00:30]} Rd1 {[%emt 0:00:31]} 64. Ba3 {[%emt 0:00:06]} Rd3+ {[%emt 0:00:25]} 65. Kf4 {[%emt 0:00:02]} Bb7 {[%emt 0:00:26]} 66. Rg8+ {[%emt 0:00:03]} Kh7 {[%emt 0:00:17]} 67. Rb8 {[%emt 0:00:15]} Rxa3 {[%emt 0:01:14]} 68. Rxb7+ {[%emt 0:00:03]} Kg6 {[%emt 0:00:02]} 69. Rc7 {[%emt 0:00:03]} Ra4+ {[%emt 0:00:11]} 70. Kg3 {[%emt 0:00:15]} Rxa5 {[%emt 0:00:01]} 71. Rxc2 {[%emt 0:00:05]} Rxe5 {[%emt 0:00:30]} 72. Rc8 {[%emt 0:00:30]} Re4 {[%emt 0:00:30]} 73. Rg8+ {[%emt 0:00:30]} Kf5 {[%emt 0:00:42]} 74. Rf8+ {[%emt 0:00:27]} Ke5 {[%emt 0:00:03]} 75. Rh8 {[%emt 0:00:09]} Rg4+ {[%emt 0:00:47]} 76. Kf3 {[%emt 0:00:01]} Rf4+ {[%emt 0:00:10]} 77. Ke3 {[%emt 0:00:09]} Rf5 {[%emt 0:00:05]} 78. Rh6 {[%emt 0:00:04]} Rg5 {[%emt 0:00:32]} 79. Rh8 {[%emt 0:00:12]} Kf6 {[%emt 0:00:46]} 80. Rh6+ {[%emt 0:02:09]} Kf5 {[%emt 0:00:15]} 81. Kf3 {[%emt 0:00:30]} e5 {[%emt 0:00:26]} 82. Rh8 {[%emt 0:00:02]} e4+ {[%emt 0:02:02] Kg4+ Kxg4 Re8 Kg3} 0-1

[Event "Commonwealth Open 2019"]
[Site "Delhi"]
[Date "2019.06.30"]
[Round "2.6"]
[White "Jubin Jimmy"]
[Black "Debashis, Das"]
[Result "1/2-1/2"]
[ECO "A40"]
[WhiteElo "2228"]
[BlackElo "2544"]
[Annotator "ChessBase"]
[PlyCount "54"]
[EventDate "2019.06.30"]
[EventType "swiss"]
[EventCountry "IND"]
[SourceTitle "playchess.com"]
[Source "ChessBase"]
[SourceQuality "1"]
[TimeControl "5400+30"]

1. d4 {[%emt 0:00:17]} e6 {[%emt 0:00:00]} 2. c4 {[%emt 0:00:14]} b6 {[%emt 0:00:00]} 3. Nc3 {[%emt 0:00:41]} Bb7 {[%emt 0:00:00]} 4. e4 {[%emt 0:00:41]} Bb4 {[%emt 0:00:00]} 5. Qc2 {[%emt 0:00:57]} Ne7 {[%emt 0:04:50]} 6. Nf3 {[%emt 0:00:21]} Bxc3+ {[%emt 0:03:23]} 7. bxc3 {[%emt 0:00:10]} d6 {[%emt 0:00:08]} 8. Bd3 {[%emt 0:06:06]} Nd7 {[%emt 0:02:37]} 9. O-O {[%emt 0:01:41]} h6 {[%emt 0:00:56]} 10. Nd2 {[%emt 0:00:38]} e5 {[%emt 0:07:50]} 11. f4 {[%emt 0:05:23]} exf4 {[%emt 0:00:25]} 12. Rxf4 {[%emt 0:01:09]} O-O {[%emt 0:05:58]} 13. Rf1 {[%emt 0:01:23]} c5 {[%emt 0:02:03]} 14. Nb3 {[%emt 0:03:33]} Ng6 {[%emt 0:00:54]} 15. Bf4 {[%emt 0:04:20]} Qe7 {[%emt 0:02:43]} 16. Bg3 {[%emt 0:03:04]} Nf6 {[%emt 0:01:26]} 17. Rae1 {[%emt 0:10:47]} Nh5 {[%emt 0:02:24]} 18. Qf2 {[%emt 0:04:23]} Rad8 {[%emt 0:01:48]} 19. Nd2 {[%emt 0:11:24]} Qg5 {[%emt 0:01:54]} 20. Qe3 {[%emt 0:03:43]} Qxe3+ {[%emt 0:06:10]} 21. Rxe3 {[%emt 0:00:03]} Nxg3 {[%emt 0:00:56]} 22. Rxg3 {[%emt 0:01:04]} Rfe8 {[%emt 0:01:42]} 23. e5 {[%emt 0:05:02]} cxd4 {[%emt 0:11:04]} 24. Bxg6 {[%emt 0:02:15]} fxg6 {[%emt 0:00:30]} 25. cxd4 {[%emt 0:00:19]} dxe5 {[%emt 0:00:30]} 26. d5 {[%emt 0:00:22]} Re7 {[%emt 0:09:04]} 27. Rb1 {[%emt 0:04:11]} Bc8 {[%emt 0:10:40]} 1/2-1/2